{"text_format":"2","workbook":"xlsx","n_sheets":5,"sheets":["záradék","összesítő","erősáram","gyengeáram","opció"],"not_rendered":{"charts":0,"images":0,"macros":0,"external_links":0,"defined_names":0,"comments":0,"pivot_tables":0},"unopened":[],"bounds":{"document_bytes":16777216,"sheet_cells":100000,"run_cost":"one","rows_first":2000,"rows_last":500,"rows_between":2000,"halvings":0,"cell_chars":16384,"cell_head_chars":4096},"cells_cut":0,"cells_raw":0,"read":"whole","date_system":"1900"}

{"sheet":"záradék","index":0,"n_rows":50,"n_cols":4,"rows_kept":50,"cut":false,"hidden":false,"merged":[[49,2,49,3],[22,2,22,3],[24,0,24,3],[27,2,27,3],[28,2,28,3],[29,2,29,3],[32,0,32,3],[36,2,36,3],[37,2,37,3],[38,2,38,3],[39,2,39,3],[40,2,40,3],[14,0,14,3],[18,2,18,3],[19,2,19,3],[20,2,20,3],[21,2,21,3]]}
[]
["SZTE GMF                               ",null,"                                       "]
["                                       ",null,"                                       "]
["Szeged, Szentháromság u. 34.           "]
["                                       ",null,"                                       "]
["                                       ",null,"                                       "]
[]
[]
["A munka leírása:                       "]
["SZTE \"Csíszár vendéglő\" épületének vagyonvédelmi                              "]
["rendszer kivitelezése                                                         "]
[]
[]
[]
["Költségvetés főösszesítő"]
["Megnevezés",null,"Anyagköltség","Díjköltség"]
["1. Építmény közvetlen költségei"]
["1.1 Közvetlen önköltség összesen",null,{"$f":"ROUND(C17,0)","v":0},{"$f":"ROUND(D17,0)","v":0}]
["1.2 Tartalékkeret vetítési alap",null,{"$f":"SUM(C18:D18)","v":0}]
["1.3 Tartalékkeret",0.05,{"$f":"ROUND(C19*B20,0)","v":0}]
["2.1 ÁFA vetítési alap",null,{"$f":"ROUND(C18+D18,0)","v":0}]
["2.2 Áfa",0.27,{"$f":"ROUND(C21*B22,0)","v":0}]
["3.  A munka ára",null,{"$f":"ROUND(C21+C22,0)","v":0}]
[]
["Opció:"]
["1. Távfelügyelet kiépítése"]
["1.1 Közvetlen önköltség összesen",null,{"$f":"ROUND(C26,0)","v":0},{"$f":"ROUND(D26,0)","v":0}]
["2.1 ÁFA vetítési alap",null,{"$f":"SUM(C27:D27)","v":0}]
["2.2 Áfa",0.27,{"$f":"ROUND(C28*B29,0)","v":0}]
["3.  A munka ára",null,{"$f":"ROUND(C28+C29,0)","v":0}]
[]
[]
["Opcióval növelt költségvetés főösszesítő"]
["Megnevezés",null,"Anyagköltség","Díjköltség"]
["1. Építmény közvetlen költségei",null,{"$f":"SUM(C18,C27)","v":0},{"$f":"SUM(D18,D27)","v":0}]
["1.1 Közvetlen önköltség összesen",null,{"$f":"ROUND(C35,0)","v":0},{"$f":"ROUND(D35,0)","v":0}]
["1.2 Tartalékkeret vetítési alap",null,{"$f":"SUM(C36:D36)","v":0}]
["1.3 Tartalékkeret",0.05,{"$f":"ROUND(C37*B38,0)","v":0}]
["2.1 ÁFA vetítési alap",null,{"$f":"ROUND(C36+D36,0)","v":0}]
["2.2 Áfa",0.27,{"$f":"ROUND(C39*B40,0)","v":0}]
["3.  A munka ára",null,{"$f":"ROUND(C39+C40,0)","v":0}]
{"$rows_empty":8}
[null,null,"Aláírás"]

{"sheet":"összesítő","index":1,"n_rows":8,"n_cols":3,"rows_kept":8,"cut":false,"hidden":false,"merged":[]}
["Munkanem megnevezése","Anyag összege","Díj összege"]
["Elektromos energia ellátás:"]
["Vagyonvédelem:"]
["Összesen:",{"$f":"ROUND(SUM(B2:B3),0)","v":0},{"$f":"ROUND(SUM(C2:C3), 0)","v":0}]
[]
["Opció:","Anyag összege","Díj összege"]
["GSM táfelügyelet"]
["Összesen:",{"$f":"ROUND(SUM(B7:B7),0)","v":0},{"$f":"ROUND(SUM(C7:C7), 0)","v":0}]

{"sheet":"erősáram","index":2,"n_rows":6,"n_cols":9,"rows_kept":6,"cut":false,"hidden":false,"merged":[]}
["Ssz.","Tételszám","Tétel szövege","Menny.","Egység","Anyag egységár","Díj egységre","Anyag összesen","Díj összesen"]
[1,"71-002-41.1.1-0111856","Vagyonvédelmi vezeték elhelyezése előre elkészített tartószerkezetre Vagyonvédelmi vezeték 2x0,5mm2 4x0,25mm2",1820,"m",null,null,{"$f":"ROUND(D2*F2, 0)","v":0},{"$f":"ROUND(D2*G2, 0)","v":0}]
[]
[2,"71-004-6.2-0120501","Tartó és egyéb szerkezetek elhelyezése, műanyag bilincs tartóra vagy faliékbe MÜKB-1 kábelbilincs",4550,"db",null,null,{"$f":"ROUND(D4*F4, 0)","v":0},{"$f":"ROUND(D4*G4, 0)","v":0}]
[]
[null,null,"Munkanem összesen:",{"$nulls":4},{"$f":"ROUND(SUM(H2:H5),0)","v":0},{"$f":"ROUND(SUM(I2:I5),0)","v":0}]

{"sheet":"gyengeáram","index":3,"n_rows":28,"n_cols":9,"rows_kept":28,"cut":false,"hidden":false,"merged":[]}
["Ssz.","Tételszám","Tétel szövege","Menny.","Egység","Anyag egységár","Díj egységre","Anyag összesen","Díj összesen"]
[1,"72-011-1.1.1.2.1.7-0222165","Riasztó rendszerek felszerelése vezetékes kivitelben, központi egységének felhelyezése, előre elhelyezett falra szerelt szekrényben,programozással, üzempróbával, bővíthető központok, max. 12-128 zóna között max. 64 zónáig bővíthető riasztó központ TRIÓDA",1,"db",null,null,{"$f":"ROUND(D2*F2, 0)","v":0},{"$f":"ROUND(D2*G2, 0)","v":0}]
[null,null,"PC-4010H 8-64 zónás riasztó központ, 4 partíció, címezhető + LCD-4501 billentyűzet, Csz:20KOKO62130"]
[]
[2,"72-011-1.1.2.1-0222058","Riasztó rendszerek felszerelése vezetékes kivitelben, kiegészítő egységek tápegység, segéd tápegység elhelyezése, rendszerbe illesztése, előre elhelyezett kapcsoló szekrénybe illetve dobozba TRIÓDA PS-100 R-2 trafó biztosítékkal 230/16V, Csz:11TRAF66028",2,"db",null,null,{"$f":"ROUND(D5*F5, 0)","v":0},{"$f":"ROUND(D5*G5, 0)","v":0}]
[]
[3,"72-011-1.1.2.2-0222001","Riasztó rendszerek felszerelése vezetékes kivitelben, kiegészítő egységek akkumulátor töltő egység elhelyezése",1,"db",null,null,{"$f":"ROUND(D7*F7, 0)","v":0},{"$f":"ROUND(D7*G7, 0)","v":0}]
[]
[4,"72-011-1.1.2.2-0222004","Riasztó rendszerek felszerelése vezetékes kivitelben, kiegészítő egységek akkumulátor elhelyezése TRIÓDA AU-06070 6V7,0Ah angol akku, Méretek: (magasság x hosszúság x szélesség) 100x151x434 mm, Csz: 10AKUL11006",2,"db",null,null,{"$f":"ROUND(D9*F9, 0)","v":0},{"$f":"ROUND(D9*G9, 0)","v":0}]
[]
[5,"72-011-1.1.2.2-0222005","Riasztó rendszerek felszerelése vezetékes kivitelben, kiegészítő egységek akkumulátor elhelyezése TRIÓDA AU-06120 6V12,0Ah angol akku, Méretek: (magasság x hosszúság x szélesség) 100x151x50 mm, Csz: 10AKUL11008",2,"db",null,null,{"$f":"ROUND(D11*F11, 0)","v":0},{"$f":"ROUND(D11*G11, 0)","v":0}]
[]
[6,"72-011-1.1.2.3-0220244","Riasztó rendszerek felszerelése vezetékes kivitelben, kiegészítő egységek fém doboz, fémház MASCO MB170 riasztódoboz 435x330x150 mm, porszórt, zsanéros, esztétikus",2,"db",null,null,{"$f":"ROUND(D13*F13, 0)","v":0},{"$f":"ROUND(D13*G13, 0)","v":0}]
[]
[7,"72-011-1.1.3.2.2-0222140","Riasztó rendszerek felszerelése vezetékes kivitelben, kezelő egységek felszerelése, tartó keret falra történő rögzítésével, LCD-s kezelő egységek kétsoros kijelzővel TRIÓDA LCD-4500 LCD-s kezelő billentyűzet PC4010/4020 központokhoz, Csz:20KOKE62134",1,"db",null,null,{"$f":"ROUND(D15*F15, 0)","v":0},{"$f":"ROUND(D15*G15, 0)","v":0}]
[]
[8,"72-011-1.1.4.1.5-0220049","Riasztó rendszerek felszerelése vezetékes kivitelben, bővíthető (BUS-os) központokhoz csatlakoztatható modulok, zónabővítő digitális rendszerekhez, 48-as digitális zónabővítő MASCO CA64ADR SATEL 48 csatornás címzett zónabővítő CA64P központhoz, beépített",1,"db",null,null,{"$f":"ROUND(D17*F17, 0)","v":0},{"$f":"ROUND(D17*G17, 0)","v":0}]
[null,null,"kapcsolóüzemű tápegység rövidzár elleni védelemmel, szabotázs bemenet"]
[]
[9,"72-011-1.1.5.2.1.2-0222255","Riasztó rendszerek felszerelése vezetékes kivitelben, behatolás érzékelő egységeinek felszerelése, digitális mozgásérzékelő, beltéri falra szerelhető kivitelben, tartó elhelyezésével TRIÓDA PAR-DG55 digitális érzékelő, Csz:21MOZG54505",68,"db",null,null,{"$f":"ROUND(D20*F20, 0)","v":0},{"$f":"ROUND(D20*G20, 0)","v":0}]
[]
[10,"72-011-1.1.5.5.1-0222081","Riasztó rendszerek felszerelése vezetékes kivitelben, behatolás érzékelő egységeinek felszerelése, hang- fényjelző (sziréna) elhelyezése kültéri sziréna TRIÓDA DSC-1210 kültéri hang-fényjelző, sziréna, 115dB, Csz:13HAFE62082",2,"db",null,null,{"$f":"ROUND(D22*F22, 0)","v":0},{"$f":"ROUND(D22*G22, 0)","v":0}]
[]
[11,"72-011-1.1.5.7-0222301","Riasztó rendszerek felszerelése vezetékes kivitelben, behatolás érzékelő egységeinek felszerelése, nyitás érzékelő elhelyezése TRIÓDA SM-200 nyitásérzékelő NC lego, fehér, Csz:21NYIT30021",1,"db",null,null,{"$f":"ROUND(D24*F24, 0)","v":0},{"$f":"ROUND(D24*G24, 0)","v":0}]
[]
[12,"72-011-1.1.5.7-0222302","Riasztó rendszer átadási dokumentáció készítése - D-terv",1,"ö",null,null,{"$f":"ROUND(D26*F26, 0)","v":0},{"$f":"ROUND(D26*G26, 0)","v":0}]
[]
[null,null,"Munkanem összesen:",{"$nulls":4},{"$f":"SUM(H2:H26)","v":0},{"$f":"SUM(I2:I26)","v":0}]

{"sheet":"opció","index":4,"n_rows":4,"n_cols":9,"rows_kept":4,"cut":false,"hidden":false,"merged":[]}
["Ssz.","Tételszám","Tétel szövege","Menny.","Egység","Anyag egységár","Díj egységre","Anyag összesen","Díj összesen"]
[7,"72-011-1.1.2.5-0220201","Riasztó rendszerek felszerelése vezetékes kivitelben, kiegészítő egységek kompakt GSM modul sim kártyával",1,"db",null,null,{"$f":"ROUND(D2*F2, 0)","v":0},{"$f":"ROUND(D2*G2, 0)","v":0}]
[8,null,"Az épületen található összes menyezeti felülvilágító ablakokra korrózivédelemmel ellátott biztonsági rácsok készítése ,felszerelése a vállalkozói felmérés szerint. ",1,"klt",null,null,{"$f":"ROUND(D3*F3, 0)","v":0},{"$f":"ROUND(D3*G3, 0)","v":0}]
[null,null,"Munkanem összesen:",{"$nulls":4},{"$f":"SUM(H2:H3)","v":0},{"$f":"SUM(I2:I3)","v":0}]